Cogmind - Beta 16 @@@ ROGUE MODE // 2025.12.28 @ 00:20:57 Player: Legato Result: Destroyed by G-34 Mercenary with Small Laser Performance ------------- Evolutions (1) 500 Regions Visited (3) 600 Robots Destroyed (39) 195 Value Destroyed (894) 894 Prototype IDs (0) 0 Alien Tech Used (0) 0 Bonus (0) 0 TOTAL SCORE: 2189 Bonus ------- None Cogmind --------- Core Integrity 0/400 Matter 290/300 Energy 89/100 System Corruption 1% Temperature Cool (6) Movement Core (100) Ox1 Location -9/Materials Parts ------- > --- POWER (1) -------- (None) > --- PROPULSION (3) --- (None) > --- UTILITY (3) ------ Small Storage Unit > --- WEAPON (2) ------- (None) > --- INVENTORY (8) ---- Ion Engine Ion Engine Structural Scanner Light Assault Rifle Peak State ------------ > --- POWER ------------ Improved Ion Engine > --- PROPULSION ------- Aluminum Leg Improved Aluminum Leg Improved Aluminum Leg > --- UTILITY ---------- Small Storage Unit Structural Scanner Propulsion Shielding > --- WEAPON ----------- Light Assault Rifle Mace > --- INVENTORY -------- Ion Engine Light Ion Engine Improved Aluminum Leg Wheel Small Storage Unit Weight Redist. System Light Assault Rifle Light Assault Rifle [Rating: 14] Favorites ----------- Power Improved Ion Engine Engine Improved Ion Engine Propulsion Aluminum Leg Leg Aluminum Leg Wheel Armored Wheel Utility Small Storage Unit Device Structural Scanner Storage Small Storage Unit Protection Propulsion Shielding Weapon Light Assault Rifle Energy Gun Beam Rifle Energy Cannon Light EM Pulse Cannon Ballistic Gun Light Assault Rifle Launcher Grenade Launcher Impact Weapon Mace Build | -11 -10 -10 -9 ------- Run | Yrd Mat Min Mat Slots Evolved 2 | . . . 2 Power . | . . . . Propulsion 1 | . . . 1 Utility 1 | . . . 1 Weapon . | . . . . Parts Attached 32 | 7 3 6 16 Power 5 | 1 . 1 3 Engine 5 | 1 . 1 3 Core . | . . . . Reactor . | . . . . Propulsion 10 | 2 . 2 6 Treads . | . . . . Leg 9 | 2 . 2 5 Wheel 1 | . . . 1 Hover . | . . . . Flight . | . . . . Utility 7 | 2 1 1 3 Device 3 | 1 . . 2 Storage 2 | 1 . 1 . Processor . | . . . . Hackware . | . . . . Protection 2 | . 1 . 1 Artifact . | . . . . Weapon 10 | 2 2 2 4 Energy Gun 1 | . . . 1 Energy Cannon 1 | . . . 1 Ballistic Gun 6 | 2 1 2 1 Ballistic Cannon . | . . . . Launcher 1 | . 1 . . Special Weapon . | . . . . Impact Weapon 1 | . . . 1 Slashing Weapon . | . . . . Piercing Weapon . | . . . . Special Melee Weapon . | . . . . Unidentified Prototypes . | . . . . Parts Lost 13 | . . 3 10 Power 2 | . . . 2 Propulsion 6 | . . 1 5 Utility 1 | . . . 1 Weapon 4 | . . 2 2 Highest Loss Streak 4 | . . 2 4 To Critical Strikes . | . . . . Average Backups 7 | 2 6 7 7 Power 1 | . 1 2 2 Propulsion 1 | 1 2 1 1 Utility 1 | . . 2 1 Weapon 1 | . 2 2 2 Tool/Special . | . . . . Unused Backups 7 | . 2 . 5 Power 4 | . . . 4 Propulsion 3 | . 2 . 1 Utility . | . . . . Weapon . | . . . . Tool/Special . | . . . . Average Slot Usage (%) 90 | . 100 97 84 Engine 11 | . 14 14 9 Leg 26 | . 28 27 25 Device 8 | . 7 . 12 Storage 12 | . 14 14 10 Protection 7 | . 6 14 5 Energy Gun 1 | . . . 1 Ballistic Gun 16 | . 16 23 13 Launcher 2 | . 11 2 . Impact Weapon 1 | . . . 2 Peak Build Rating 14 | 9 9 7 14 Average Rating 9 | 5 7 6 10 On Entrance 5 | . 9 7 7 Avg Prop Armor Cover (%) 8 | . . . 8 Naked Turns 18 | . . . 18 Heaviest Build 18 | 13 15 15 18 Greatest Support 36 | 20 20 20 36 Greatest Overweight (x) 1 | . . . 1 Average Overweight (x) . | . . . . Largest Inventory Capacity 8 | 8 8 8 8 Average Capacity 7 | 7 8 8 7 Most Carried 8 | 5 8 8 8 Average Carried 7 | 3 6 7 7 Final Capacity 8 | 8 8 8 8 Final Carried 8 | 5 8 8 4 Class Distribution -------------------- 62% | Mutant 37% | Scavenger-Mutant Dominant Class ---------------- Mutant | -10/Materials Mutant | -10/Mines Scavenger-Mutant | -9/Materials Resources | -11 -10 -10 -9 ----------- Run | Yrd Mat Min Mat Matter Collected 784 | 233 122 211 218 Remotely . | . . . . Salvage Created 1151 | 22 360 201 568 Parts 73 | 2 30 14 27 Haulers Intercepted 1 | . 1 . . Recyclers Shooed 2 | . . 2 . Parts Field Recycled . | . . . . Retrieved Matter . | . . . . Parts Self-Destructed . | . . . . Prevented . | . . . . Parts Restored . | . . . . Kills | -11 -10 -10 -9 ------- Run | Yrd Mat Min Mat Combat Hostiles Destroyed 26 | . 10 4 12 Guns 10 | . 1 1 8 Cannons 1 | . . . 1 AOE 13 | . 9 3 1 Classes Destroyed 9 | 1 5 . 3 Worker 2 | . 2 . . Tunneler 3 | 1 . 2 . Hauler 1 | . 1 . . Recycler 4 | . 2 2 . Operator 1 | . . . 1 Watcher 2 | . . . 2 Swarmer 6 | . 3 3 . Grunt 15 | . 7 . 8 Sentry 4 | . . . 4 Best Kill Streak 9 | 1 9 5 3 Combat Bots Only 4 | . 4 3 3 Max Kills in Single Turn 3 | 1 3 3 1 Gunslinging . | . . . . Exploded 3 | . 1 3 1 Melee . | . . . . Uniques/NPCs Destroyed 1 | . . 1 . YI-UF0 (-10/Mines) Combat | -11 -10 -10 -9 -------- Run | Yrd Mat Min Mat Hostile Shots Fired 248 | . 24 16 208 Missed 73 | . 3 6 64 Hits 175 | . 21 10 144 Projectile 175 | . 21 10 144 AOE 6 | . . 6 . Critical Strikes 3 | . . . 3 Damage Taken 2250 | . 249 279 1722 Core 524 | . 45 75 404 Absorbed by Shields . | . . . . Redirected to Shielding 53 | . 4 33 16 Core Remaining (%) 76 | 100 . 52 . Volleys Fired 101 | 9 14 15 63 Largest 2 | 2 2 2 2 Hottest 76 | 40 50 50 76 Shots Fired 184 | 18 28 27 111 Gun 160 | 18 14 24 104 Cannon 7 | . . . 7 Launcher 17 | . 14 3 . Special . | . . . . Kinetic 147 | 18 14 24 91 Thermal 13 | . . . 13 Explosive 17 | . 14 3 . Electromagnetic 7 | . . . 7 Robot Hit Streak 14 | 8 12 14 8 Robot Miss Streak 7 | 3 3 1 7 Penetration Max . | . . . . Secondary Targets 1 | . . . 1 Max Gunslinging Chain 1 | . . . 1 Shots Hit Robots 138 | 12 21 22 83 Core Hits 73 | 2 28 16 27 Critical Kills . | . . . . Critical Parts Destroyed 2 | . . . 2 Critical Strikes 3 | . . . 3 Burn 1 | . . . 1 Destroy 1 | . . . 1 Smash 1 | . . . 1 Melee Attacks 14 | . . . 14 Impact 14 | . . . 14 Slashing . | . . . . Piercing . | . . . . Sneak Attacks 1 | . . . 1 Combat Hostiles . | . . . . Follow-up Attacks . | . . . . Damage Inflicted 2592 | 102 923 385 1182 Guns 898 | 102 72 151 573 Cannons 100 | . . . 100 Explosions 1159 | . 851 234 74 Melee 387 | . . . 387 Ramming 48 | . . . 48 Kinetic 796 | 102 72 151 471 Thermal 176 | . . . 176 Explosive 1085 | . 851 234 . Electromagnetic 100 | . . . 100 Impact 387 | . . . 387 Slashing . | . . . . Piercing . | . . . . Highest Corruption 1 | . . . 1 Average Corruption 1 | . . . 1 Corruption Purged . | . . . . Corruption Blocked . | . . . . Effects 2 | . . . 2 Heat Flow Errors 2 | . . . 2 Overload Shots . | . . . . Overflow Damage 152 | . 27 20 105 Projectiles 18 | . . . 18 Explosions 47 | . 27 20 . Melee 87 | . . . 87 Knockbacks . | . . . . Impact . | . . . . Kinetic . | . . . . Secondary . | . . . . Self-Inflicted Damage 70 | . 36 32 2 Shots 3 | . 1 2 . Rammed 4 | . . . 4 Targets Rammed 13 | . . 1 12 Kicked 9 | . . 1 8 Crushed . | . . . . Highest Temperature 241 | . 38 10 241 Average Temperature 53 | . 14 7 64 Received Heat Transfer 900 | . 69 . 831 Siege Activations . | . . . . Martial Activations . | . . . . Shielding Activations . | . . . . Robots Disrupted . | . . . . Combat Hostiles . | . . . . Robots Corrupted 4 | . . . 4 Combat Hostiles 2 | . . . 2 Parts Fried 2 | . . . 2 Impact Corruptions 5 | . . . 5 Robots Melted . | . . . . Combat Hostiles . | . . . . Parts Melted 2 | . . . 2 Heat Transferred 433 | . . . 433 Parts Sabotaged . | . . . . Parts Stolen . | . . . . Parts Stripped . | . . . . Power Chain Reactions 1 | . . . 1 Alert | -11 -10 -10 -9 ------- Run | Yrd Mat Min Mat Maximum Alert Level 1 | . 1 . . Low Security (%) 95 | 100 69 100 100 Level 1 4 | . 30 . . Level 2 . | . . . . Level 3 . | . . . . Level 4 . | . . . . Level 5 . | . . . . High Security . | . . . . Max Security . | . . . . Peak Influence 293 | 5 293 183 198 Initial 106 | . . 106 20 Average 94 | . 121 114 89 Influence Increases 899 | 5 333 117 444 Destroy 0b10 Robot/C 500 | . 200 60 240 Destroy 0b10 Robot/NC 65 | 5 25 20 15 Destroy Leader 116 | . 32 10 74 Successful Hack 13 | . 5 . 8 Disable Machine 30 | . 30 . . Destroy Structure 70 | . 41 27 2 Lose Combat Pursuer 105 | . . . 105 Influence Decreases 772 | 5 60 337 370 Entered New Map 200 | . . 167 33 Time Decay 454 | 5 60 140 249 Lost Part 118 | . . 30 88 Squads Dispatched 8 | . 2 . 6 Investigation 5 | . 2 . 3 Extermination . | . . . . Reinforcement 3 | . . . 3 Assault . | . . . . Garrison . | . . . . Intercept . | . . . . Searches Triggered . | . . . . Construction Impeded . | . . . . Haulers Reinforced . | . . . . Active Scanning Responses . | . . . . Cargo Convoy Interrupts . | . . . . Stealth | -11 -10 -10 -9 --------- Run | Yrd Mat Min Mat Distress Signals 4 | . 1 . 3 Communications Jammed . | . . . . Distress Signals . | . . . . Times Spotted 54 | . 10 4 40 Peak Tracking Total 15 | . 3 3 15 Tactical Retreats 4 | . . . 4 Traps | -11 -10 -10 -9 ------- Run | Yrd Mat Min Mat Traps Triggered 2 | . . . 2 Indirectly . | . . . . Trap Hack Attempts . | . . . . Triggered . | . . . . Disarmed . | . . . . Reprogrammed . | . . . . Reused . | . . . . Traps Extracted . | . . . . Installed 5 | . . 5 . Triggered . | . . . . Machines | -11 -10 -10 -9 ---------- Run | Yrd Mat Min Mat Machines Disabled 5 | . 5 . . Max in Single Turn 2 | . 2 . . Machines Repaired . | . . . . Machines Dismantled . | . . . . Machines Sabotaged . | . . . . Overloaded Fab Kills . | . . . . Hacking | -11 -10 -10 -9 --------- Run | Yrd Mat Min Mat Machines Accessed 6 | . 3 . 3 Terminals 6 | . 3 . 3 Fabricators . | . . . . Repair Stations . | . . . . Recycling Units . | . . . . Scanalyzers . | . . . . Garrison Access . | . . . . Total Hacks 17 | . 8 . 9 Successful 3 | . 1 . 2 Failed 14 | . 7 . 7 Catastrophic 4 | . 1 . 3 Database Lockouts . | . . . . Manual 9 | . 4 . 5 Terminals 17 | . 8 . 9 Fabricators . | . . . . Repair Stations . | . . . . Recycling Units . | . . . . Scanalyzers . | . . . . Garrison Access . | . . . . Terminal Hacks 3 | . 1 . 2 Branch Access Points 1 | . . . 1 Emergency Access Points 1 | . . . 1 Zone Layout 1 | . 1 . . Fabricator Hacks . | . . . . Repair Station Hacks . | . . . . Recycling Unit Hacks . | . . . . Scanalyzer . | . . . . Garrison Access Hacks . | . . . . Unauthorized Hacks . | . . . . Terminals . | . . . . Fabricators . | . . . . Repair Stations . | . . . . Recycling Units . | . . . . Scanalyzers . | . . . . Garrison Access . | . . . . Data Cores Recovered . | . . . . Used . | . . . . Hacking Detections 5 | . 2 . 3 Full Trace Events 5 | . 2 . 3 Feedback Events 1 | . . . 1 Corruption 1 | . . . 1 Feedback Blocked . | . . . . Robot Schematics Acquired . | . . . . Robots Built . | . . . . Authchips . | . . . . Time . | . . . . Total Robot Build Rating . | . . . . Part Schematics Acquired . | . . . . Parts Built . | . . . . Authchips . | . . . . Time . | . . . . Total Part Build Rating . | . . . . Part Studies Acquired . | . . . . Parts Repaired . | . . . . Time . | . . . . Parts Recycled . | . . . . Recycled Matter . | . . . . Retrieved Matter . | . . . . Retrieved Components . | . . . . Parts Scanalyzed . | . . . . Part Schematics Acquired . | . . . . Parts Damaged . | . . . . Bothacking | -11 -10 -10 -9 ------------ Run | Yrd Mat Min Mat Used RIF Installer . | . . . . Robots Hacked . | . . . . Non-combat . | . . . . Combat . | . . . . Robot Hacks Applied . | . . . . Relay Couplers Released . | . . . . Fabnet Peak Effective % . | . . . . Robots Rewired . | . . . . Allies Hacked . | . . . . Hacks Repelled . | . . . . Allies | -11 -10 -10 -9 -------- Run | Yrd Mat Min Mat Total Allies . | . . . . Largest Group . | . . . . Highest-Rated Group . | . . . . Highest-Rated Ally . | . . . . Total Orders . | . . . . Ally Attacks . | . . . . Total Damage . | . . . . Kills . | . . . . Allies Corrupted . | . . . . Allies Melted . | . . . . Intel | -11 -10 -10 -9 ------- Run | Yrd Mat Min Mat Active Infowar (turns) 644 | 10 96 . 538 Terrain 106 | 10 96 . . Structural 538 | . . . 538 Robot Analysis Total . | . . . . Derelict Logs Recovered 1 | . . 1 . Drone Launches . | . . . . Drone Recoveries . | . . . . Exploration | -11 -10 -10 -9 ------------- Run | Yrd Mat Min Mat Turns Passed 1239 | 85 196 296 662 Spaces Moved 725 | 41 110 204 370 Core 37 | 4 . . 33 Treads . | . . . . Legs 626 | 37 110 204 275 Wheels 62 | . . . 62 Hover . | . . . . Flight . | . . . . Fastest Speed 50 | 50 120 120 50 Average Speed 113 | 113 120 120 108 Slowest Speed 120 | 120 120 120 120 Overloaded Moves . | . . . . Propulsion Burnouts . | . . . . Robots Hopped . | . . . . Potential Cave-ins . | . . . . Cave-ins Triggered . | . . . . Exploration Rate (%) 29 | 4 27 47 41 Regions Visited 3 Branch Regions 1 Pre-discovered Areas 1 | . . 1 . Known Exits Taken . | . . . . Unknown Exits Taken 3 | 1 1 1 . Scrap Searched . | . . . . Spaces Dug . | . . . . Terrain Destroyed 68 | . 39 27 2 Melee . | . . . . Projectile . | . . . . AOE 68 | . 39 27 2 Terrain Rammed . | . . . . Walls Destroyed . | . . . . Machines Disabled . | . . . . Actions | -11 -10 -10 -9 --------- Run | Yrd Mat Min Mat Total 953 | 61 149 232 511 Wait 28 | . 13 . 15 Move 722 | 40 109 203 370 Hop . | . . . . Pick Up 20 | 5 6 . 9 Fast Attach 15 | 7 1 3 4 Attach 9 | . . 1 8 Detach . | . . . . Swap 12 | . 2 2 8 Drop 14 | . 4 2 8 Fire 101 | 9 14 15 63 Melee 14 | . . . 14 Ram 4 | . . . 4 Kick 9 | . . 1 8 Crush . | . . . . Escape Stasis . | . . . . Rewire . | . . . . Trap 5 | . . 5 . Miscellaneous . | . . . . Route ------- -11/Scrapyard -10/Materials -10/Mines (discovered 2 exits: *Mat x2) -9/Materials (discovered 1 exit: Min) History --------- Turn | Location | Event 9 | -11/Scrapyard | Discovered new exit (range 15) 86 | -11/Scrapyard | Entered Materials 212 | -10/Materials | Discovered new exit (range 17) 282 | -10/Materials | Entered Mines 313 | -10/Mines | Build established: Mutant 377 | -10/Mines | Learned location of Storage (-8) 378 | -10/Mines | Found a hidden stash of uninstalled traps 468 | -10/Mines | Destroyed YI-UF0 524 | -10/Mines | Discovered new exit (range 4) 565 | -10/Mines | Discovered new exit (range 11) 578 | -10/Mines | Entered Materials 578 | -9/Materials | Evolved 2 slots: Propulsion x1, Utility x1 621 | -9/Materials | Identified exit to Mines 923 | -9/Materials | Lost 4 parts (1p3n) 1156 | -9/Materials | Lost 3 parts (1n2w) 1169 | -9/Materials | Core integrity fell below 50% 1220 | -9/Materials | Released all parts (7) 1235 | -9/Materials | Core integrity fell below 20% 1240 | -9/Materials | Destroyed by G-34 Mercenary with Small Laser Last Messages --------------- 01207_ ALERT: Alarm triggered, dispatching investigation squad. 01208_ U-05 Engineer lays Concrete. 01209_ ALERT: Hostiles spotted, dispatching reinforcements to Terminal M003. 01210_ U-05 Engineer lays Concrete. 01220_ Released Sml. Storage Unit. 01220_ Released Imp. Aluminum Leg. 01220_ Released Imp. Ion Engine. 01220_ Released Weight Redist. System. 01220_ Released Arm. Wheel. 01220_ Released Lgt. Armor Plating. 01220_ Released Lgt. Assault Rifle. 01220_ Slammed into G-34 Mercenary. 01222_ System corrupted: Heat flow error (+193). 01222_ Critical hit (Burn: +37). 01236_ O-16 Technician sends out distress signal. 01236_ O-16 Technician: "IFF HANDSHAKE FAILED. SECURING TERMINAL." Map ----- +----------------------------------------------------+ | ?? # ##?????# "?????????? #????????? | | ?? + ##?????# ""???????## ##???????? | | ?? # ######## """ #???? #???????? | | ?? # # #!!! +???? #???????? | | ?? # # #!!! """ #???? #???????? | | ?? # # """#!! """ #????# ####+###? | | ?? + + """# """ #????# #? | | ?? # # """#? #????# #? | | # # #??#+##+#?????# #? | | #### #####+##### #?????# #? | | # #### ##### ####### #? | | # #? | | %+ % #### ######### #? | | #% ##?# Y# ## s #? | | # #### %g=*[ ## #? | | ## #####+## ###g!! ## s ####? | | ## # # #?#%*! ## #???? | | ## # """ # #?#g ## #???? | | #### + "T" # #?# ##s #???? | | # " " # ###g##### #???? | | # # #???? | | # # ??# % #???? | | #### # ###??# #???? | | # # ##???# """ #???? | | #% #########???# """ #???? | | "% /% #########???# @ """ #???? | | "% # ##??????????###### #???? | | # ##???????????????# g #???? | | # ##???????????????+ g #???? | | #### ##???????????????# #???? | | # ##???????????????# #???? | | "" # ##???????????????# a##???? | | "" + ##???????????????# !| #????? | | "" # ##???????????????# !o +????? | | # % ##???????????????# #????? | | # ##???????????????# #????? | | ## ###???????????????? g [[ #????? | | ## ###???????????????? g [ ?????? | | ## ##????????????????? ???????? | | ##### ##????????????????? ??????????? | | ##### ##?????????????????# ????????????? | | ???## ##????????????????????????????????? | | ???## ##????????????????????????????????? | | ???## ##????????????????????????????????? | | ???## ##????????????????????????????????? | | ???## ##????????????????????????????????? | | ???## ##????????????????????????????????? | | ???## ##????????????????????????????????? | | ???## ##????????????????????????????????? | | ???## ##????????????????????????????????? | +----------------------------------------------------+ Best States ------------- Heat Dissipation 28 Energy Generation 12 Energy Capacity 265 Matter Stores 300 Matter Capacity 300 Sight Range 16 Terrain Scan Range 16 Terrain Scan Density 10 Additional Mass Support 6 Armor Coverage 150 Propulsion Shielding 33 Evasion (%) 55 Item Schematics ----------------- None Robot Schematics ------------------ None Fabricated ------------ Nothing Repaired ---------- Nothing Studied --------- None Alien Tech Used ----------------- None Achievements -------------- None Challenges ------------ None Game ------ Seed ChromionHeavyBlasthammer Manual? 0 Play Time 00:18:28 Cumulative 11.9 hours Start 2025.12.28 @ 00:03:35 End 2025.12.28 @ 00:20:57 Sessions 1 Manual Loads 0 Difficulty Rogue Special Mode None Game No. 20 Rogue 20 Adventurer 0 Explorer 0 Win Type - Total 0 Types 0/0/0/0/0/0/0/0/0/0 Lore% 11 Gallery% 18 Achievement% 14 Wizard Run 0 Options --------- Layout 1 ASCII 0 Keyboard 0 Movement Arrows Keybinds 1 Fullscreen 1 Font 24/Proggy Map View 50x35 Zoom Use 0% Tactical HUD 1 Map Filters NONE Filters NONE Steam 1 RUN: 81ec7079-6abc-4f3e-af15-071929a5af06